bitfinex/quotes_ETHUSD_20251128
["timestamp","ask_amount","ask_price","bid_price","bid_amount"]
[1764308059716,0.1135,3023.1,3022.9,3.61797224]
[1764308059917,0.0093,3023.0,3022.9,3.61797224]
[1764308061111,0.0508,3023.1,3022.9,7.39485388]
[1764308061112,0.002,3023.1,3022.9,7.39485388]
[1764308061313,0.002,3023.1,3023.0,1.0506]
[1764308061715,0.002,3023.1,3023.0,3.87677221]
[1764308062013,0.002,3023.1,3023.0,4.35857221]
[1764308065313,0.002,3023.1,3023.0,5.54324691]
[1764308065514,0.002,3023.1,3023.0,6.02504691]
[1764308069441,0.002,3023.1,3023.0,3.40797221]
[1764308069442,0.5006,3023.1,3023.0,3.40797221]
[1764308070541,0.002,3023.1,3023.0,3.40797221]
[1764308074610,0.4962,3023.1,3023.0,3.40797221]
[1764308077643,0.4962,3023.1,3023.0,4.35857221]
[1764308077644,0.002,3023.1,3023.0,4.35857221]
[1764308080919,0.002,3023.1,3023.0,4.39165193]
[1764308081946,0.002,3023.1,3023.0,4.35857221]
[1764308086253,0.31185502,3023.1,3023.0,4.35857221]
[1764308086459,0.31185502,3023.1,3023.0,5.50347032]
[1764308086625,0.002,3023.1,3023.0,6.87903083]
[1764308091445,0.002,3023.1,3023.0,5.81463083]
[1764308091645,0.002,3023.1,3023.0,5.74137032]
[1764308092056,0.002,3023.1,3023.0,5.24577032]
[1764308092960,0.002,3023.1,3023.0,5.74137032]
[1764308094154,0.002,3023.1,3023.0,5.24577032]
[1764308095569,0.002,3023.1,3023.0,10.5076126]
[1764308095737,0.002,3023.1,3023.0,11.97455424]
[1764308098869,0.002,3023.1,3023.0,7.24139168]
[1764308100767,0.002,3023.1,3023.0,6.74579168]
[1764308100970,0.002,3023.1,3023.0,6.24909168]
[1764308101947,0.002,3023.1,3023.0,7.2744714]
[1764308102147,0.002,3023.1,3023.0,7.24139168]
[1764308104086,0.002,3023.1,3023.0,7.24635877]
[1764308104658,0.002,3023.1,3023.0,5.74633741]
[1764308105178,0.002,3023.1,3023.0,5.77941713]
[1764308105672,0.002,3023.1,3023.0,5.28381713]
[1764308106082,0.002,3023.1,3023.0,4.75403741]
[1764308106289,0.4852,3023.1,3023.0,5.32216215]
[1764308106463,0.5513,3023.1,3023.0,4.34753341]
[1764308109363,0.4852,3023.1,3023.0,4.34753341]
[1764308114307,0.002,3023.1,3023.0,4.84213341]
[1764308114507,0.002,3023.1,3023.0,6.39678603]
[1764308114788,0.4604,3023.1,3023.0,5.56361884]
[1764308114991,0.002,3023.1,3023.0,5.66361884]
[1764308116270,0.002,3023.1,3023.0,5.69669856]
[1764308117481,0.002,3023.1,3023.0,4.99886982]
[1764308122006,0.4568,3023.1,3023.0,4.51306982]
[1764308122203,0.4568,3023.1,3023.0,4.41306982]
[1764308122416,0.002,3023.1,3023.0,6.71420082]
[1764308122714,0.002,3023.1,3023.0,8.55127473]
[1764308123316,0.002,3023.1,3023.0,8.55460899]
[1764308125418,0.002,3023.1,3023.0,6.77615401]
[1764308128091,0.002,3023.1,3023.0,5.52125401]
[1764308128294,0.4604,3023.1,3023.0,4.78052701]
[1764308128497,0.4604,3023.1,3023.0,4.37502301]
[1764308129211,0.002,3023.1,3023.0,4.47502301]
[1764308129393,0.002,3023.1,3023.0,4.99390273]
[1764308130708,0.002,3023.1,3023.0,4.96082301]
[1764308130907,0.002,3023.1,3023.0,4.47502301]
[1764308131612,0.0882,3023.1,3023.0,4.47502301]
[1764308134918,0.002,3023.1,3023.0,4.47502301]
[1764308135097,0.002,3023.1,3023.0,4.50810273]
[1764308136029,0.002,3023.1,3023.0,4.99390273]
[1764308136193,0.002,3023.1,3023.0,6.50815645]
[1764308137428,0.002,3023.1,3023.0,6.04805645]
[1764308137630,0.002,3023.1,3023.0,4.99390273]
[1764308139860,0.002,3023.1,3023.0,4.50810273]
[1764308140338,0.0882,3023.1,3023.0,4.50810273]
[1764308140709,0.002,3023.1,3023.0,4.50810273]
[1764308141247,0.002,3023.1,3023.0,4.97070273]
[1764308141445,0.002,3023.1,3023.0,5.45890273]
[1764308143847,0.002,3023.1,3023.0,4.97070273]
[1764308145161,0.0557,3023.1,3023.0,4.47502301]
[1764308149653,0.002,3023.1,3023.0,4.47502301]
[1764308150357,0.002,3023.1,3023.0,4.97070273]
[1764308150553,0.002,3023.1,3023.0,6.93784493]
[1764308150775,0.002,3023.1,3023.0,6.90476521]
[1764308151257,0.4805,3023.1,3023.0,4.47502301]
[1764308152358,0.4805,3023.1,3023.0,4.50810273]
[1764308152560,0.4805,3023.1,3023.0,4.47502301]
[1764308153058,0.4805,3023.1,3023.0,4.50810273]
[1764308153754,0.4805,3023.1,3023.0,4.47502301]
[1764308153954,0.4805,3023.1,3023.0,4.37502301]
[1764308154253,0.5513,3023.1,3023.0,14.37502301]
[1764308154752,0.4805,3023.1,3023.0,14.37502301]
[1764308155522,0.5513,3023.1,3023.0,14.37502301]
[1764308156256,0.002,3023.1,3023.0,15.42582301]
[1764308156453,0.002,3023.1,3023.0,14.93762301]
[1764308158174,0.002,3023.1,3023.0,4.93762301]
[1764308158469,0.002,3023.1,3023.0,4.97070273]
[1764308160140,0.002,3023.1,3023.0,5.45890273]
[1764308160539,0.002,3023.1,3023.0,4.97070273]
[1764308161162,0.547,3023.1,3023.0,4.34256632]
[1764308161467,0.547,3023.1,3023.0,5.53015994]
[1764308163753,0.0557,3023.1,3023.0,5.53015994]
[1764308165213,0.0557,3023.1,3023.0,4.34256632]
[1764308165479,0.002,3023.1,3023.0,4.80516632]
[1764308165680,0.0557,3023.1,3023.0,4.24256632]
[1764308165835,0.0557,3023.1,3023.0,4.18511632]
[1764308166451,0.002,3023.1,3023.0,4.18511632]
[1764308166636,0.002,3023.1,3023.0,4.28511632]
[1764308167169,0.002,3023.1,3023.0,6.26096112]
[1764308167553,0.002,3023.1,3023.0,6.39341474]
[1764308173790,0.002,3023.1,3023.0,6.79891874]
[1764308173991,0.002,3023.1,3023.0,6.76583902]
[1764308174558,0.002,3023.1,3023.0,16.22227672]
[1764308180515,0.002,3023.1,3023.0,26.22227672]
[1764308180683,0.002,3023.3,3023.2,0.505504]
[1764308181012,0.002,3023.5,3023.4,0.505504]
[1764308181180,0.002,3023.5,3023.4,6.63771696]
[1764308181383,0.002,3023.5,3023.4,7.12271696]
[1764308182624,0.002,3023.5,3023.4,10.43025152]
[1764308184146,0.002,3023.5,3023.4,10.56266436]
[1764308184347,0.002,3023.5,3023.4,12.83841423]
[1764308184841,0.4995,3024.7,3023.7,0.1]
[1764308185012,0.4995,3024.6,3023.7,7.82945754]
[1764308185335,0.4995,3024.5,3023.7,8.28138548]
[1764308185539,0.4995,3024.5,3023.7,18.78088548]
[1764308185731,0.4995,3024.5,3023.7,20.69952443]
[1764308186252,0.4995,3024.5,3023.7,18.92635191]
[1764308187413,0.4995,3024.5,3023.7,22.23355831]
[1764308190944,0.4995,3024.4,3023.7,22.23355831]
[1764308196650,0.4995,3024.4,3023.7,24.00673083]
[1764308196857,0.1667,3025.1,3023.7,29.14045368]
[1764308197164,0.4995,3025.0,3024.9,0.1]
[1764308197370,0.5493,3025.0,3024.9,0.1]
[1764308197531,0.5493,3025.0,3024.7,0.72559411]
[1764308197532,0.5493,3025.0,3024.7,0.209]
[1764308197730,0.4796,3024.8,3024.7,0.209]
[1764308197937,0.4796,3024.8,3024.5,0.1]
[1764308198133,0.4796,3024.6,3024.5,0.5796]
[1764308198349,0.1667,3025.1,3024.9,9.4507]
[1764308198568,0.98674268,3025.1,3024.9,9.4507]
[1764308198768,0.98674268,3025.1,3024.9,9.9303]
[1764308198967,0.98674268,3025.1,3024.9,10.0]
[1764308199171,0.98674268,3025.1,3024.9,0.5493]
[1764308199466,0.98674268,3025.1,3024.9,9.4507]
[1764308199763,0.42923231,3025.0,3024.9,10.0]
[1764308201335,0.73813452,3025.0,3024.9,10.0]
[1764308201840,0.73813452,3025.0,3024.9,9.91383]
[1764308202260,4.04391964,3025.0,3024.9,9.91383]
[1764308202865,4.04391964,3025.0,3024.9,10.0]
[1764308205576,5.037085,3025.0,3024.9,10.0]
[1764308207269,5.037085,3025.0,3024.9,9.91383]
[1764308207466,5.037085,3025.0,3024.9,9.36453]
[1764308207684,5.037085,3025.0,3024.9,0.46313]
[1764308207882,5.037085,3025.0,3024.9,0.39343]
[1764308208390,8.34287012,3025.0,3024.2,4.03220143]
[1764308208695,1.63268111,3024.9,3024.2,4.03220143]
[1764308208858,0.30890221,3024.8,3024.2,4.03220143]
[1764308209060,0.30890221,3024.7,3024.2,4.03220143]
[1764308209369,0.30890221,3024.6,3024.2,4.03220143]
[1764308209559,0.30890221,3024.5,3024.2,4.03220143]
[1764308209759,0.30890221,3024.4,3024.2,4.03220143]
[1764308209974,2.31694426,3024.9,3024.2,4.03220143]
[1764308210140,0.87197948,3024.8,3024.2,4.03220143]
[1764308210342,0.30970654,3024.7,3024.2,4.03220143]
[1764308210647,0.30970654,3024.6,3024.2,4.03220143]
[1764308210849,0.30970654,3024.5,3024.2,7.33886104]
[1764308211090,0.30970654,3024.4,3024.2,4.03220143]
[1764308211355,0.56227294,3024.8,3024.2,4.03220143]
[1764308211649,0.92834812,3024.7,3024.2,4.03220143]
[1764308211849,0.30983647,3024.6,3024.2,4.03220143]
[1764308212047,0.30983647,3024.5,3024.2,4.03220143]
[1764308212270,0.30983647,3024.4,3024.2,4.03220143]
[1764308212477,0.61851165,3024.7,3024.2,4.03220143]
[1764308212666,0.30982973,3024.6,3024.2,4.03220143]
[1764308212846,0.30982973,3024.5,3024.2,4.03220143]
[1764308213051,0.30982973,3024.4,3024.2,4.03220143]
[1764308213247,0.61851165,3024.7,3024.2,4.03220143]
[1764308213448,0.70227037,3024.6,3024.2,4.03220143]
[1764308213648,0.30981618,3024.5,3024.2,4.03220143]
[1764308213855,0.30981618,3024.4,3024.2,3.30665263]
[1764308214081,0.39245419,3024.6,3024.2,3.30665263]
[1764308214261,0.30981623,3024.5,3024.2,3.30665263]
[1764308214558,0.30981623,3024.4,3024.2,3.30665263]
[1764308214756,0.39245419,3024.6,3024.2,3.30665263]
[1764308214956,0.30980393,3024.5,3024.2,3.30665263]
[1764308215180,0.30980393,3024.4,3024.2,3.30665263]
[1764308215359,0.39245419,3024.6,3024.2,3.30665263]
[1764308215680,0.30979317,3024.5,3024.2,3.30665263]
[1764308215864,0.30979317,3024.4,3023.9,5.93442449]
[1764308216175,5.54181322,3024.3,3023.9,0.61851165]
[1764308216379,0.30979317,3024.2,3023.8,0.209]
[1764308216672,0.30979317,3024.1,3023.8,0.209]
[1764308216878,0.30979317,3024.0,3023.8,0.209]
[1764308217046,0.30979317,3023.9,3023.8,0.209]
[1764308218279,6.22537615,3024.3,3023.8,0.209]
[1764308218461,0.93206357,3024.2,3024.1,0.001]
[1764308219948,0.62253761,3024.2,3024.1,0.001]
[1764308220272,0.93199437,3024.2,3024.1,0.001]
[1764308222080,4.23865398,3024.2,3024.1,0.001]
[1764308222755,1.65758848,3024.2,3024.1,0.001]
[1764308224370,4.34171048,3024.2,3024.1,0.001]
[1764308226557,1.03505087,3024.2,3024.1,0.001]
[1764308231492,0.30945676,3024.2,3024.1,0.9396]
[1764308231697,0.30945676,3024.2,3024.1,0.46]
[1764308233009,0.30945676,3024.2,3024.1,0.001]
[1764308235079,0.30945676,3024.2,3024.1,0.9476]
[1764308235808,0.30945676,3024.2,3024.1,0.4837]
[1764308235984,0.30945676,3024.2,3024.1,0.9476]
[1764308237399,3.30611846,3024.7,3024.1,4.25436895]
[1764308237604,0.66111556,3024.6,3024.1,4.25436895]
[1764308237913,0.30960371,3024.5,3024.1,4.25436895]
[1764308238114,0.30960371,3024.4,3024.1,4.25436895]
[1764308238316,0.30960371,3024.3,3024.1,4.25436895]
[1764308238518,0.30960371,3024.2,3024.1,4.25436895]
[1764308239009,0.30960371,3024.2,3024.1,0.9476]
[1764308248338,0.30960371,3024.2,3024.1,0.001]
[1764308261324,0.30960371,3024.2,3024.1,0.9484]
[1764308261637,0.30960371,3024.2,3024.1,1.0484]
[1764308261934,0.30960371,3024.2,3024.1,1.83563383]
[1764308262122,0.30960371,3024.2,3024.1,5.14240278]
[1764308263473,0.30960371,3024.2,3024.1,4.35516895]
[1764308264558,0.30960371,3024.2,3024.1,1.0484]
[1764308265639,0.30960371,3024.2,3024.1,4.35516895]
[1764308266259,0.30960371,3024.2,3024.1,4.25516895]
[1764308269858,0.30960371,3024.2,3024.1,0.9484]
[1764308276750,0.31020906,3024.2,3024.1,0.9484]
[1764308280593,0.31020906,3024.2,3024.1,0.001]
[1764308281185,0.67189129,3024.2,3024.1,0.001]
[1764308281387,3.9785509,3024.2,3024.1,0.001]
[1764308281597,4.69333665,3024.2,3024.1,0.001]
[1764308281786,6.7177004,3024.2,3024.1,0.001]
[1764308281991,7.28086008,3024.2,3024.1,0.001]
[1764308282193,6.38759444,3024.2,3024.1,0.001]
[1764308282394,7.28013758,3024.2,3024.1,0.001]
[1764308283398,7.27955782,3024.2,3024.1,0.001]
[1764308283601,7.17955782,3024.2,3024.1,0.001]
[1764308283806,7.27955782,3024.2,3024.1,0.001]
[1764308284370,6.38759444,3024.2,3024.1,0.001]
[1764308285370,5.95691382,3024.2,3024.1,0.001]
[1764308285597,6.28759444,3024.2,3024.1,0.001]
[1764308285799,5.76040982,3024.2,3024.1,0.001]
[1764308289011,5.55140982,3024.2,3024.1,0.001]
[1764308289176,5.76040982,3024.2,3024.1,0.001]
[1764308296612,10.49147049,3024.2,3024.1,0.001]
[1764308298910,3.61686867,3024.2,3024.1,0.9229]
[1764308300489,3.61686867,3024.2,3024.1,0.4693]
[1764308300689,3.61686867,3024.2,3024.1,0.001]
[1764308304184,4.32951237,3024.2,3024.1,0.001]
[1764308304390,5.98098493,3024.2,3024.1,0.001]
[1764308304985,6.88102992,3024.2,3024.1,0.001]
[1764308315233,5.43855736,3024.2,3024.1,0.9229]
[1764308316236,4.53855736,3024.2,3024.1,0.9229]
[1764308319206,4.32955736,3024.2,3024.1,0.9229]
[1764308322236,4.32955736,3024.2,3024.1,0.4693]
[1764308322406,4.32955736,3024.2,3024.1,0.9347]
[1764308326727,4.3295421,3024.2,3024.1,0.9347]
[1764308329560,4.3295421,3024.2,3024.1,0.4693]
[1764308329756,5.20313765,3024.2,3024.1,0.001]
[1764308336456,6.09399851,3024.2,3024.1,0.001]
[1764308337859,10.82505918,3024.2,3024.1,0.001]
[1764308338443,6.30299851,3024.2,3024.1,0.001]
[1764308339861,6.3030462,3024.2,3024.1,0.001]
[1764308340169,5.41218534,3024.2,3024.1,0.919]
[1764308340661,5.20318534,3024.2,3024.1,0.919]
[1764308340862,5.41218534,3024.2,3024.1,0.919]
[1764308345754,1.02293018,3024.2,3024.1,0.919]
[1764308345955,0.31024149,3024.2,3024.1,4.32576895]
[1764308350154,3.30791353,3024.9,3024.1,7.6325379]
[1764308350381,0.30952711,3024.8,3024.4,0.1]
[1764308350570,0.30952711,3024.7,3024.4,0.1]
[1764308350767,0.30952711,3024.7,3024.2,0.4654]
[1764308350768,0.30952711,3024.6,3024.5,0.4599]
[1764308351171,0.30952711,3024.6,3024.5,0.9113]
[1764308358601,3.61574942,3024.6,3024.1,0.21]
[1764308358905,0.30952711,3024.5,3024.2,0.4809]
[1764308359204,0.30952711,3024.4,3024.2,0.4809]
[1764308359381,0.30952711,3024.3,3024.2,0.4809]
[1764308359775,0.30952711,3024.3,3024.2,0.4983]
[1764308359974,0.30952711,3024.3,3024.2,0.9792]
[1764308369084,0.30952711,3024.3,3024.2,4.28585961]
[1764308370293,0.30952711,3024.3,3024.2,5.04533212]
[1764308370596,0.30942574,3024.3,3024.2,5.04533212]
[1764308371711,0.30942574,3024.3,3024.2,0.9792]
[1764308372516,0.30942574,3024.3,3024.2,4.28585961]
[1764308374011,0.30942574,3024.3,3024.2,3.80495961]
[1764308374311,0.30942574,3024.3,3024.2,0.4983]
[1764308374714,0.30942574,3024.3,3024.2,0.9792]
[1764308377331,0.30942574,3024.3,3024.2,4.28585961]
[1764308377535,0.30942574,3024.3,3024.2,5.04533122]
[1764308377899,0.30942574,3024.3,3024.2,0.9792]
[1764308378998,0.30942574,3024.3,3024.1,0.001]
[1764308379223,0.209,3024.8,3024.1,0.001]
[1764308379224,0.30942574,3024.2,3024.1,0.001]
[1764308380040,1.02395242,3024.2,3024.1,0.001]
[1764308380440,1.15641525,3024.2,3024.1,0.001]
[1764308380849,1.95426948,3024.2,3024.1,0.001]
[1764308381222,5.26092909,3024.2,3024.1,0.001]
[1764308386146,1.4487428,3024.2,3024.1,0.9487]
[1764308386352,3.82508535,3024.2,3024.1,0.001]
[1764308387544,3.82518172,3024.2,3024.1,0.001]
[1764308391085,0.51852211,3024.2,3024.1,0.9487]
[1764308391270,0.30952211,3024.2,3024.1,0.9487]
[1764308393993,0.30952211,3024.2,3024.1,0.001]
[1764308394162,3.97778956,3024.2,3024.1,0.001]
[1764308400516,0.30952211,3024.2,3024.1,0.9487]
[1764308400716,0.30954041,3024.2,3024.1,0.9487]
[1764308401418,0.002,3024.9,3024.1,7.7712379]
[1764308401619,0.002,3024.9,3024.4,0.1]
[1764308401620,0.3095242,3024.8,3024.4,0.1]
[1764308401797,0.3095242,3024.7,3024.4,0.1]
[1764308401998,0.002,3024.9,3024.5,0.457]
[1764308401999,0.3095242,3024.6,3024.5,0.457]
[1764308402417,0.3095242,3024.6,3024.5,0.9477]
[1764308402619,0.3095242,3024.6,3024.5,4.25403162]
[1764308402799,0.3095242,3024.6,3024.5,1.7137562]
[1764308403002,0.3095242,3024.6,3024.5,0.9477]
[1764308406823,0.3095242,3024.6,3024.5,0.4907]
[1764308407736,0.3095242,3024.6,3024.5,0.9477]
[1764308414043,0.30923135,3024.6,3024.5,0.9477]
[1764308414544,0.30924889,3024.6,3024.5,0.9477]
[1764308415440,0.30924889,3024.6,3024.5,0.4907]
[1764308415743,0.30924889,3024.6,3024.3,3.30654466]
[1764308415948,0.30924889,3024.5,3024.3,3.30654466]
[1764308416247,0.30924889,3024.4,3024.3,3.30654466]
[1764308416617,0.30924889,3024.4,3024.3,4.25914466]
[1764308420815,0.30924889,3024.4,3024.3,5.03672483]
[1764308421220,0.30924889,3024.4,3024.3,5.13672483]
[1764308422050,0.30924889,3024.4,3024.3,5.16979033]
[1764308422439,0.30924889,3024.4,3024.3,5.13672483]
[1764308423046,0.30924889,3024.4,3024.3,5.13772483]
[1764308427326,0.30924889,3024.4,3024.3,5.17079033]
[1764308427533,0.30924889,3024.4,3024.3,5.13772483]
[1764308437765,0.30924889,3024.4,3024.3,0.4574]
[1764308438064,0.30924889,3024.4,3024.3,0.001]
[1764308438263,0.30924889,3024.4,3024.3,3.75855027]
[1764308438469,0.30924889,3024.4,3024.3,4.20955027]
[1764308438967,0.30924889,3024.4,3024.3,0.903]
[1764308439344,0.30924889,3024.4,3024.3,4.20955027]
[1764308439537,0.30924889,3024.4,3024.3,0.903]
[1764308440671,0.30924889,3024.4,3024.3,4.20955027]
[1764308441171,0.30924889,3024.4,3024.3,0.903]
[1764308441669,0.30924889,3024.4,3024.3,0.452]
[1764308442242,0.30924889,3024.4,3024.3,0.9498]
[1764308442470,0.30924889,3024.4,3024.3,4.25635027]
[1764308443380,0.30924889,3024.4,3024.3,8.98439361]
[1764308443579,0.30924889,3024.4,3024.3,0.001]
[1764308451194,0.30924889,3024.4,3024.3,0.4767]
[1764308453092,0.30924889,3024.4,3024.3,0.001]
[1764308454394,0.30924889,3024.4,3024.3,3.30755027]
[1764308455692,0.30924889,3024.4,3024.3,3.78325027]
[1764308455867,0.30924889,3024.4,3024.3,4.28105027]
[1764308456493,0.30924889,3024.4,3024.3,0.001]
[1764308457296,0.30924889,3024.4,3024.3,3.30755027]
[1764308459087,0.30924889,3024.4,3024.3,0.001]
[1764308462603,0.30924889,3024.4,3024.3,5.73560884]
[1764308462785,0.30924889,3024.4,3024.3,7.09150066]
[1764308462985,0.30924889,3024.4,3024.3,7.05843516]
[1764308463188,0.30924889,3024.4,3024.3,10.36498543]
[1764308472922,0.30924889,3024.4,3024.3,0.001]
[1764308478003,0.30924889,3024.4,3024.3,0.922]
[1764308478704,0.30924889,3024.4,3024.3,0.4619]
[1764308480736,0.30924889,3024.4,3024.3,4.22855027]
[1764308482135,0.30924889,3024.4,3024.3,0.4619]
[1764308482336,0.30924889,3024.4,3024.3,0.001]
[1764308483535,0.99320811,3024.7,3024.3,0.001]
[1764308483840,0.74005644,3024.6,3024.3,0.001]
[1764308484141,0.31013518,3024.5,3024.3,0.001]
[1764308484341,0.31013518,3024.4,3024.3,0.001]
[1764308486148,0.31013518,3024.4,3024.3,0.4619]
[1764308486350,0.31013518,3024.4,3024.3,0.001]
[1764308487017,0.31012124,3024.4,3024.3,0.001]
[1764308490647,0.31012124,3024.4,3024.3,4.95700947]
[1764308490856,0.31012124,3024.4,3024.3,10.51029516]
[1764308491066,0.002,3024.9,3024.7,0.1]
[1764308491223,0.31006159,3024.8,3024.7,0.1]
[1764308491422,0.31006159,3024.8,3024.7,1.021]
[1764308491624,0.31006159,3024.8,3024.7,1.61676916]
[1764308493234,0.31006159,3024.8,3024.7,4.92288216]
[1764308496293,0.002,3024.9,3024.7,4.92288216]
[1764308496491,3.25924009,3025.5,3024.8,0.921]
[1764308496693,0.30951597,3025.4,3024.8,0.921]
[1764308496860,0.30951597,3025.3,3024.8,0.921]
[1764308497062,0.30951597,3025.2,3024.8,0.921]
[1764308497261,0.30951597,3025.1,3024.8,0.921]
[1764308497584,0.30951597,3025.0,3024.8,1.75190766]
[1764308497778,0.30951597,3024.9,3024.8,1.75190766]
[1764308498692,0.30951597,3024.9,3024.8,5.05791136]
[1764308499273,3.61720103,3025.6,3024.8,8.36391506]
[1764308499473,0.30938709,3025.5,3024.9,0.4601]
[1764308499695,0.30938709,3025.4,3024.9,0.4601]
[1764308499896,0.30938709,3025.3,3024.9,0.4601]
[1764308500102,0.30938709,3025.2,3024.9,0.4601]
[1764308500285,0.30938709,3025.1,3024.9,0.4601]
[1764308500597,0.30938709,3025.0,3024.9,0.4601]
[1764308500901,3.3058944,3024.9,3024.4,0.72559411]
[1764308501063,3.3058944,3024.9,3024.3,0.001]
[1764308501064,5.0583722,3024.5,3024.3,0.001]
[1764308501269,2.48889819,3024.4,3024.3,0.001]
[1764308501601,1.63693857,3024.4,3024.3,0.001]
[1764308501803,1.76940622,3024.4,3024.3,0.001]
[1764308501966,2.10799326,3024.4,3024.3,0.001]
[1764308503093,5.4144342,3024.4,3024.3,0.001]
[1764308505025,5.0089302,3024.4,3024.3,0.001]
[1764308507107,4.29588272,3024.4,3024.3,0.001]
[1764308507820,5.00740812,3024.4,3024.3,0.001]
[1764308511230,4.29588272,3024.4,3024.3,0.001]
[1764308512934,5.00682698,3024.4,3024.3,0.001]
[1764308513133,4.29588272,3024.4,3024.3,0.001]
[1764308518203,4.70138672,3024.4,3024.3,0.001]
[1764308518414,5.03206734,3024.4,3024.3,0.001]
[1764308518620,5.13206734,3024.4,3024.3,0.001]
[1764308518842,4.70138672,3024.4,3024.3,0.001]
[1764308519331,5.03206734,3024.4,3024.3,0.001]
[1764308519630,5.13206734,3024.4,3024.3,0.001]
[1764308520464,4.70138672,3024.4,3024.3,0.001]
[1764308520621,11.29583438,3024.4,3024.3,0.001]
[1764308520819,12.147794,3024.4,3024.3,0.001]
[1764308521027,12.14679517,3024.4,3024.0,0.001]
[1764308521319,0.73618462,3024.0,3023.2,0.4989]
[1764308521537,0.51738826,3023.9,3023.2,0.4989]
[1764308521741,0.30838826,3023.8,3023.2,0.4989]
[1764308521951,0.30838826,3023.7,3023.2,0.4989]
[1764308522124,0.30838826,3023.6,3023.2,0.4989]
[1764308522465,0.30838826,3023.5,3023.2,0.4989]
[1764308522749,3.61601481,3023.4,3023.2,0.4989]
[1764308522954,0.30838826,3023.3,3023.2,0.4989]
[1764308523468,0.80728826,3023.3,3023.2,0.9951]
[1764308523815,0.80728826,3023.3,3022.6,3.30936346]
[1764308524015,0.30838826,3023.2,3023.0,0.4999]
[1764308524241,0.30838826,3023.1,3023.0,0.4999]
[1764308524640,0.30838826,3023.1,3023.0,0.9961]
[1764308529724,0.30838826,3023.1,3023.0,0.488]
[1764308529925,0.30838826,3023.1,3023.0,0.9846]
[1764308531354,0.30838826,3023.1,3023.0,5.71229158]
[1764308531564,0.30838826,3023.1,3023.0,9.59500103]
[1764308531764,0.30838826,3023.1,3023.0,9.80400103]
[1764308531949,0.30838826,3023.1,3023.0,9.90400103]
[1764308532258,0.30838826,3023.1,3023.0,10.79232561]
[1764308536592,0.30838826,3023.1,3023.0,9.90400103]
[1764308538785,0.30838826,3023.1,3023.0,9.90647726]
[1764308539786,0.88832458,3024.3,3023.0,9.90647726]
[1764308539787,0.88832458,3024.4,3023.0,21.8781836]
[1764308539991,0.88832458,3024.4,3023.9,0.4749]
[1764308539992,1.02273282,3024.3,3023.9,0.4749]
[1764308540156,1.02273282,3024.2,3023.9,0.4749]
[1764308540361,0.30954379,3024.1,3023.9,0.4749]
[1764308540561,0.30954379,3024.0,3023.9,0.4749]
[1764308540861,3.61642209,3024.0,3023.7,0.4963]
[1764308541170,0.30954379,3023.9,3023.8,0.4963]
[1764308541369,0.30954379,3023.9,3023.8,5.80136781]
[1764308542085,3.61598666,3024.4,3023.8,5.80136781]
[1764308542289,0.30954379,3024.3,3023.9,0.4963]
[1764308542481,3.30644287,3024.4,3023.9,0.4963]
[1764308542482,0.30954379,3024.2,3023.9,0.4963]
[1764308542662,3.30644287,3024.4,3023.9,0.4963]
[1764308542862,3.61600235,3024.3,3023.9,0.4963]
[1764308543077,0.30942464,3024.2,3023.9,0.4963]
[1764308543277,3.30857771,3024.3,3023.9,0.4963]
[1764308543483,0.30935984,3024.2,3023.9,0.4963]
[1764308543762,3.30857771,3024.3,3023.9,0.4963]
[1764308544086,0.30935984,3024.2,3023.9,0.4963]
[1764308544295,3.30855485,3024.3,3023.9,0.4963]
[1764308544497,0.30930259,3024.2,3023.9,0.4963]
[1764308544667,3.30855485,3024.3,3023.9,0.4963]
[1764308544869,0.30930258,3024.2,3023.9,0.4963]
[1764308545063,3.30855485,3024.3,3023.9,0.4963]
[1764308545767,0.002,3024.3,3023.9,0.4963]
[1764308546975,0.002,3024.3,3023.9,3.80324899]
[1764308547174,0.002,3024.3,3023.9,0.4963]
[1764308547495,0.002,3024.3,3024.0,0.4963]
[1764308549368,0.002,3024.3,3024.2,0.4749]
[1764308549571,0.31106144,3024.3,3024.2,0.4749]
[1764308549786,0.31106144,3024.3,3024.2,0.9712]
[1764308550097,0.002,3024.3,3024.2,0.9712]
[1764308554302,0.31101971,3024.3,3024.2,0.9712]
[1764308554499,0.31101971,3024.3,3024.0,3.30680844]
[1764308554500,0.31101971,3024.3,3024.0,0.4963]
[1764308554704,0.002,3024.3,3023.9,3.51592216]
[1764308554904,0.002,3024.3,3023.9,4.01222216]
[1764308555106,0.002,3024.3,3023.9,3.51592216]
[1764308555281,0.002,3024.3,3024.0,3.80310761]
[1764308557390,0.002,3024.3,3024.2,0.4749]
[1764308557608,0.31110089,3024.3,3024.2,0.4749]
[1764308557787,0.31110089,3024.3,3024.2,0.9712]
[1764308560695,0.31110089,3024.3,3024.2,4.27785961]
[1764308561912,0.31110089,3024.3,3024.2,4.3109262]
[1764308565529,0.31110089,3024.3,3024.2,1.00426659]
[1764308565899,0.31110089,3024.3,3024.2,0.9712]
[1764308566108,0.31110089,3024.3,3024.2,4.27785961]
[1764308566513,0.31110089,3024.3,3024.2,4.3109262]
[1764308568211,0.31110089,3024.3,3024.2,4.4109262]
[1764308571618,0.31110089,3024.3,3024.2,1.10426659]
[1764308571823,0.31110089,3024.3,3024.2,1.0712]
[1764308572632,0.31110089,3024.3,3024.2,0.9712]
[1764308572836,0.31110089,3024.3,3024.2,4.27785961]
[1764308573030,0.31110089,3024.3,3024.2,0.9712]
[1764308574146,0.31110089,3024.3,3024.2,4.27785961]
[1764308577725,0.31110089,3024.3,3024.2,0.9712]
[1764308577937,0.31110089,3024.3,3024.2,4.27785961]
[1764308579150,0.31216546,3024.3,3024.2,0.9712]
[1764308579644,0.31216546,3024.3,3024.2,1.0712]
[1764308580250,0.31216546,3024.3,3024.2,0.9712]
[1764308583253,0.31216546,3024.3,3024.2,6.27801521]
[1764308583420,0.31216546,3024.3,3024.2,6.34494862]
[1764308583421,0.002,3024.3,3024.2,6.34494862]
[1764308589125,0.002,3024.3,3024.2,5.61935451]
[1764308593329,0.002,3024.7,3024.3,0.405504]